bitfinex-derivatives/quotes_SOLF0:USTF0_20250818
["timestamp","ask_amount","ask_price","bid_price","bid_amount"]
[1755546000933,134.12,183.49,183.46,0.03438005]
[1755546001334,134.12,183.49,183.46,2.78438005]
[1755546001530,134.12,183.49,183.47,2.75]
[1755546002038,2.9,183.48,183.46,0.03438005]
[1755546002935,137.02,183.49,183.46,0.03438005]
[1755546003942,137.02,183.49,183.46,2.78438005]
[1755546004336,134.12,183.49,183.47,2.75]
[1755546005033,134.12,183.49,183.48,2.75]
[1755546005240,0.03445261,183.52,183.48,5.4474]
[1755546005241,134.11445261,183.52,183.48,5.4474]
[1755546005441,134.11445261,183.52,183.5,2.75]
[1755546005637,134.11445261,183.52,183.51,2.75]
[1755546006738,0.03445261,183.52,183.51,2.75]
[1755546007338,0.03445261,183.52,183.51,8.1967]
[1755546007746,134.08,183.55,183.5,2.72]
[1755546007942,134.08,183.55,183.54,2.72]
[1755546008142,134.06,183.57,183.53,5.4459]
[1755546008337,134.06,183.57,183.55,2.72]
[1755546009034,134.06,183.57,183.56,2.72]
[1755546009240,137.91334312,183.57,183.56,2.72]
[1755546010747,134.06,183.57,183.56,2.72]
[1755546014338,2.9,183.61,183.55,3.84885719]
[1755546014542,136.92,183.61,183.58,2.72]
[1755546014743,134.02,183.61,183.58,2.72]
[1755546016444,134.02,183.61,183.57,5.4447]
[1755546016650,134.02,183.61,183.59,2.72]
[1755546018540,134.02,183.61,183.6,2.72]
[1755546019053,2.9,183.67,183.59,2.72]
[1755546019252,134.0,183.66,183.59,2.72]
[1755546019857,134.0,183.66,183.61,0.0393359]
[1755546020165,136.9,183.66,183.61,0.0393359]
[1755546020353,136.9,183.66,183.63,2.72]
[1755546021453,134.0,183.66,183.65,2.72]
[1755546021961,134.0,183.66,183.63,5.4432]
[1755546022149,134.0,183.66,183.64,2.72]
[1755546022748,136.96,183.66,183.61,3.85309802]
[1755546023253,136.96,183.66,183.63,2.72]
[1755546024253,136.96,183.66,183.61,12.01679802]
[1755546024254,2.96,183.65,183.61,12.01679802]
[1755546024450,134.0,183.66,183.63,2.72]
[1755546024655,134.0,183.66,183.64,2.72]
[1755546025258,136.96,183.66,183.62,5.4433]
[1755546025456,136.96,183.66,183.63,2.72]
[1755546026255,136.96,183.66,183.63,8.1632]
[1755546026856,134.0,183.66,183.64,8.1628]
[1755546027162,2.96,183.69,183.65,2.72]
[1755546027461,133.92,183.72,183.66,2.72]
[1755546027851,2.96,183.7,183.67,0.04154439]
[1755546028051,133.92,183.72,183.67,0.04154439]
[1755546028258,2.96,183.71,183.67,0.04154439]
[1755546034662,2.96,183.71,183.59,6.53376212]
[1755546034663,2.96,183.69,183.59,6.53376212]
[1755546034863,2.96,183.67,183.59,2.72]
[1755546035060,2.96,183.67,183.56,9.25896212]
[1755546035264,2.96,183.67,183.56,12.01896212]
[1755546035563,2.96,183.67,183.56,2.76]
[1755546035962,2.96,183.67,183.56,6.57376212]
[1755546036164,0.0390227,183.63,183.57,8.2048]
[1755546036463,133.9190227,183.63,183.57,8.2048]
[1755546038366,136.8790227,183.63,183.57,8.2048]
[1755546039177,2.96,183.62,183.54,2.76]
[1755546039566,2.96,183.62,183.54,8.2056]
[1755546039974,0.0357041,183.6,183.54,8.2056]
[1755546042067,2.9957041,183.6,183.54,8.2056]
[1755546042261,2.9957041,183.6,183.54,2.76]
[1755546042865,2.9957041,183.6,183.54,8.2058]
[1755546043375,2.9957041,183.6,183.55,5.4456]
[1755546043779,2.9957041,183.6,183.57,2.76]
[1755546046279,2.9957041,183.6,183.53,3.81376212]
[1755546046280,0.0357041,183.6,183.58,2.76]
[1755546046476,0.0357041,183.6,183.56,3.81376212]
[1755546046774,0.0357041,183.6,183.59,2.76]
[1755546047079,50.0,183.62,183.59,2.76]
[1755546047280,0.03875656,183.6,183.59,2.76]
[1755546051178,0.03875656,183.6,183.54,2.76]
[1755546051368,2.99875656,183.6,183.54,2.76]
[1755546051680,2.96,183.6,183.54,2.76]
[1755546051881,0.03794407,183.59,183.54,2.76]
[1755546052081,3.04794407,183.59,183.55,2.76]
[1755546055285,3.04794407,183.59,183.55,5.4455]
[1755546055480,0.03794407,183.59,183.51,2.76]
[1755546055784,0.03794407,183.59,183.54,2.76]
[1755546055985,0.03794407,183.59,183.58,8.2047]
[1755546056186,3.01,183.62,183.58,8.2047]
[1755546056585,0.03763936,183.6,183.58,8.2047]
[1755546059292,0.03763936,183.6,183.59,5.4444]
[1755546060187,0.03763936,183.6,183.58,5.4446]
[1755546060385,0.03763936,183.6,183.58,8.2046]
[1755546060691,0.03763936,183.6,183.55,2.76]
[1755546061283,3.01,183.58,183.55,2.76]
[1755546062088,3.01,183.59,183.55,8.2055]
[1755546063993,0.03763936,183.6,183.55,8.2055]
[1755546064192,3.01,183.59,183.55,8.2055]
[1755546064891,3.01,183.58,183.55,8.2055]
[1755546065598,3.01,183.58,183.55,5.4455]
[1755546066096,3.01,183.58,183.55,8.2055]
[1755546066398,0.03763936,183.6,183.54,8.2057]
[1755546066596,3.01,183.57,183.54,8.2057]
[1755546066897,3.01,183.56,183.54,5.4457]
[1755546067697,3.01,183.55,183.52,2.76]
[1755546067993,3.01,183.55,183.51,8.2066]
[1755546068201,3.01,183.54,183.51,8.2066]
[1755546069095,3.01,183.56,183.5,8.2069]
[1755546069293,3.01,183.55,183.45,2.76]
[1755546069488,3.01,183.55,183.49,5.4472]
[1755546069987,0.03955795,183.54,183.49,5.4472]
[1755546070394,3.01,183.53,183.49,8.2072]
[1755546070899,3.01,183.53,183.5,2.76]
[1755546073700,3.01,183.53,183.49,5.4472]
[1755546073701,0.03955795,183.54,183.48,2.76]
[1755546073898,0.03955795,183.54,183.52,2.76]
[1755546074203,0.03955795,183.54,183.53,2.76]
[1755546074698,133.82,183.56,183.51,3.81376212]
[1755546074900,3.04817746,183.55,183.51,9.26036212]
[1755546075104,3.01,183.54,183.51,9.26036212]
[1755546075304,3.01,183.54,183.51,12.02036212]
[1755546077902,3.01,183.54,183.51,3.81376212]
[1755546078097,3.01,183.53,183.51,3.81376212]
[1755546079205,0.03817746,183.55,183.51,6.57376212]
[1755546079513,3.01,183.54,183.51,8.2067]
[1755546079712,3.04817746,183.55,183.48,6.57376212]
[1755546079903,3.04817746,183.55,183.48,8.2076]
[1755546080509,3.04817746,183.55,183.47,5.4478]
[1755546081112,3.04817746,183.55,183.48,5.4475]
[1755546081309,3.04817746,183.55,183.46,2.76]
[1755546082110,3.04817746,183.55,183.48,5.4475]
[1755546083201,3.04817746,183.55,183.49,5.4473]
[1755546083813,3.08,183.54,183.5,8.207]
[1755546084009,0.03817746,183.55,183.51,2.76]
[1755546084202,3.11817746,183.55,183.52,5.4463]
[1755546084398,3.08,183.55,183.52,2.76]
[1755546084802,3.11912595,183.55,183.52,2.76]
[1755546085708,3.11912595,183.55,183.52,8.2064]
[1755546085906,0.03912595,183.55,183.52,3.81376212]
[1755546086207,0.03912595,183.55,183.54,2.76]
[1755546087216,0.03912595,183.55,183.54,8.2059]
[1755546088705,0.03912595,183.55,183.54,5.4459]
[1755546089211,0.03912595,183.55,183.53,5.4461]
[1755546090110,0.03912595,183.55,183.54,2.76]
[1755546090409,0.03912595,183.55,183.54,8.2059]
[1755546091904,0.03912595,183.55,183.54,2.76]
[1755546092105,0.03912595,183.55,183.53,5.446]
[1755546092501,0.03912595,183.55,183.53,8.206]
[1755546093213,0.03912595,183.55,183.54,2.76]
[1755546094115,0.03912595,183.55,183.54,8.2059]
[1755546095515,0.03912595,183.55,183.54,2.76]
[1755546095713,3.11912595,183.55,183.52,3.81376212]
[1755546096218,3.11912595,183.55,183.52,9.26006212]
[1755546096219,3.08,183.54,183.52,9.26006212]
[1755546097602,3.08,183.54,183.51,2.76]
[1755546097603,0.03912595,183.55,183.51,5.4466]
[1755546097810,3.08,183.53,183.51,5.4466]
[1755546098010,3.11912595,183.55,183.49,3.81376212]
[1755546098317,3.11912595,183.55,183.52,5.4463]
[1755546098616,0.03912595,183.55,183.53,2.76]
[1755546100418,0.03912595,183.55,183.52,8.2063]
[1755546101519,3.11912595,183.55,183.52,8.2063]
[1755546103919,3.08,183.52,183.49,6.57376212]
[1755546105222,3.08,183.52,183.49,3.81376212]
[1755546105421,3.08,183.52,183.5,5.4468]
[1755546106421,3.08,183.54,183.51,5.4467]
[1755546107020,0.03912595,183.55,183.52,8.2064]
[1755546107523,3.86199728,183.54,183.52,8.2064]
[1755546107819,3.08,183.54,183.52,5.4464]
[1755546109821,3.08,183.54,183.53,5.4461]
[1755546110125,6.94367808,183.54,183.53,5.4461]
[1755546111512,3.08,183.54,183.53,5.4461]
[1755546112315,6.94533845,183.54,183.52,5.4463]
[1755546112514,3.08,183.54,183.52,5.4463]
[1755546113619,3.07,183.53,183.51,5.4466]
[1755546113811,3.07,183.52,183.51,5.4466]
[1755546114117,3.07,183.52,183.5,5.4469]
[1755546115125,0.03912595,183.55,183.49,2.76]
[1755546115126,3.07,183.53,183.49,5.4472]
[1755546115321,3.07,183.54,183.49,5.4472]
[1755546115515,3.86535821,183.53,183.49,5.4472]
[1755546115721,3.07,183.51,183.49,5.4472]
[1755546116119,3.07,183.51,183.48,5.4476]
[1755546116319,0.03912595,183.55,183.48,5.4476]
[1755546116518,3.07,183.5,183.48,5.4476]
[1755546117621,3.07,183.5,183.48,2.76]
[1755546117822,3.07,183.5,183.46,6.57376212]
[1755546118129,0.03795614,183.53,183.46,5.4481]
[1755546118319,6.93430335,183.52,183.46,8.2081]
[1755546118520,3.86430335,183.51,183.44,2.76]
[1755546118723,3.07,183.52,183.47,5.4477]
[1755546118923,3.86383865,183.51,183.48,2.76]
[1755546119126,3.07,183.51,183.48,2.76]
[1755546119427,3.10789706,183.51,183.48,2.76]
[1755546119726,3.07,183.5,183.47,5.4477]
[1755546119924,3.07,183.5,183.47,2.76]
[1755546120126,3.07,183.49,183.46,5.4481]
[1755546120427,3.07,183.48,183.45,8.2084]
[1755546121121,3.07,183.48,183.45,2.76]
[1755546121528,3.07,183.48,183.46,2.76]
[1755546125330,0.03789706,183.51,183.45,5.4483]
[1755546125633,3.07,183.5,183.45,5.4483]
[1755546125819,3.07,183.49,183.45,5.4483]
[1755546126022,3.07,183.48,183.45,8.2083]
[1755546128519,3.07,183.48,183.45,2.76]
[1755546128720,3.07,183.47,183.44,8.2087]
[1755546130830,3.07,183.47,183.44,2.76]
[1755546131129,3.07,183.45,183.4,2.76]
[1755546131332,3.07,183.44,183.41,2.76]
[1755546131524,3.07,183.43,183.4,5.4498]
[1755546131730,3.07,183.43,183.4,2.76]
[1755546132321,3.07,183.43,183.39,3.81376212]
[1755546132520,3.07,183.43,183.41,2.76]
[1755546134338,3.07,183.43,183.39,9.26396212]
[1755546134636,3.07,183.43,183.4,2.76]
[1755546135235,0.03663596,183.44,183.39,3.81376212]
[1755546135437,0.03663596,183.44,183.42,2.76]
[1755546135934,3.10663596,183.44,183.42,2.76]
[1755546138133,3.10663596,183.44,183.42,8.2094]
[1755546138332,0.03663596,183.44,183.4,2.76]
[1755546139039,0.03663596,183.44,183.39,3.81376212]
[1755546139234,0.03663596,183.44,183.42,2.76]
[1755546139439,0.03663596,183.44,183.42,5.4492]
[1755546139631,0.03663596,183.44,183.41,2.76]
[1755546139835,0.03663596,183.44,183.4,2.76]
[1755546140140,0.03663596,183.44,183.43,8.2091]
[1755546140637,138.44325831,183.56,183.47,2.76]
[1755546140638,183.7,183.55,183.47,2.76]
[1755546140835,3.07,183.5,183.47,2.76]
[1755546141633,3.07,183.5,183.47,8.2079]
[1755546142028,3.07,183.53,183.42,6.56376212]
[1755546142242,133.7,183.55,183.42,6.56376212]
[1755546142243,2.96,183.51,183.45,5.4484]
[1755546142429,2.96,183.51,183.46,0.03447709]
[1755546142635,50.0,183.52,183.46,5.48267709]
[1755546142943,52.96,183.52,183.46,2.78447709]
[1755546143239,2.96,183.52,183.49,2.75]
[1755546143545,2.96,183.54,183.51,2.75]
[1755546144640,2.96,183.54,183.48,6.56376212]
[1755546144843,2.96,183.54,183.5,5.4469]
[1755546145035,2.96,183.53,183.5,5.4469]
[1755546145341,2.96,183.53,183.5,8.1969]
[1755546146138,2.96,183.53,183.51,5.4466]
[1755546146443,2.96,183.55,183.51,8.2066]
[1755546147141,2.96,183.54,183.51,2.79442667]
[1755546147444,2.96,183.57,183.51,3.84818879]
[1755546147645,2.96,183.54,183.51,6.60818879]
[1755546147844,2.96,183.58,183.51,0.03442667]
[1755546148043,2.96,183.56,183.51,0.03442667]
[1755546148550,2.96,183.58,183.51,0.03442667]
[1755546148738,3.86937419,183.57,183.51,0.03442667]
[1755546148943,3.86937419,183.56,183.51,0.03442667]
[1755546149246,2.96,183.54,183.51,0.03442667]
[1755546149446,2.96,183.53,183.51,0.03442667]
[1755546149650,2.96,183.52,183.51,0.03442667]
[1755546150455,2.96,183.58,183.51,0.03442667]
[1755546150749,2.96,183.54,183.51,0.03442667]
[1755546150950,2.96,183.57,183.52,2.76]
[1755546151153,6.82973002,183.56,183.52,2.76]
[1755546151348,2.96,183.58,183.51,0.03442667]
[1755546151650,3.87001121,183.57,183.51,0.03442667]
[1755546151852,2.96,183.54,183.51,0.03442667]
[1755546154952,2.96,183.58,183.51,0.03442667]
[1755546155249,2.96,183.56,183.51,0.03442667]
[1755546155555,6.77376212,183.54,183.51,0.03442667]
[1755546155853,2.96,183.52,183.51,0.03442667]
[1755546156054,140.45082537,183.52,183.51,0.03442667]
[1755546158451,140.45082537,183.52,183.45,5.4485]
[1755546158653,6.83082537,183.51,183.42,3.81376212]
[1755546158853,2.96,183.51,183.43,2.8]
[1755546159053,2.96,183.51,183.44,5.4486]
[1755546159744,0.04176668,183.49,183.44,5.4486]
[1755546159948,2.96,183.48,183.43,5.4489]
[1755546160154,0.04176668,183.49,183.44,2.8]
[1755546160353,2.96,183.47,183.44,2.8]
[1755546160643,0.04147017,183.48,183.44,5.4487]
[1755546161046,0.04147017,183.48,183.45,2.8]
[1755546161453,3.00147017,183.48,183.45,2.8]
[1755546162256,0.04147017,183.48,183.45,2.8]
[1755546162445,0.04147017,183.48,183.46,2.8]
[1755546164862,0.04147017,183.48,183.47,2.8]
[1755546166562,0.04147017,183.48,183.47,8.2479]
[1755546170974,2.96,183.55,183.5,5.4469]
[1755546171267,2.96,183.55,183.52,2.8]
[1755546171862,2.96,183.54,183.5,2.8]
[1755546172169,2.96,183.53,183.5,2.8]
[1755546172369,2.96,183.53,183.5,2.83824613]
[1755546174868,3.04,183.52,183.5,0.03824613]
[1755546175073,3.04,183.55,183.5,0.03824613]
[1755546175367,3.04,183.53,183.5,0.03824613]
[1755546175563,133.6,183.56,183.5,0.03824613]
[1755546175862,3.04,183.54,183.5,0.03824613]
[1755546176067,3.04,183.52,183.5,0.03824613]
[1755546177162,3.04,183.54,183.5,0.03824613]
[1755546177364,3.04,183.52,183.5,0.03824613]
[1755546178073,3.04,183.54,183.5,8.28524613]
[1755546178373,6.92077162,183.53,183.5,8.28524613]
[1755546178671,3.04,183.53,183.5,8.28524613]
[1755546179369,53.04,183.55,183.51,8.2467]
[1755546179569,53.04,183.55,183.5,0.03824613]
[1755546179570,3.88215598,183.54,183.52,2.8]
[1755546179873,53.04,183.55,183.52,2.8]
[1755546180072,3.88215676,183.54,183.52,2.8]
[1755546180367,3.04,183.51,183.5,0.03824613]
[1755546181772,3.04,183.53,183.5,0.03824613]
[1755546181969,6.92332107,183.52,183.5,0.03824613]
[1755546182166,3.04,183.52,183.5,0.03824613]
[1755546183079,3.04,183.54,183.51,2.8]
[1755546183271,3.88453031,183.53,183.51,2.8]
[1755546183575,50.0,183.55,183.5,0.03824613]
[1755546183775,133.6,183.56,183.52,2.8]
[1755546183970,3.88697225,183.55,183.52,2.8]
[1755546184167,3.04,183.55,183.52,2.8]
[1755546184367,3.88748593,183.54,183.52,2.8]
[1755546184570,3.04,183.55,183.52,2.8]
[1755546184871,3.88728383,183.54,183.52,2.8]
[1755546185072,3.04,183.55,183.52,2.8]
[1755546185276,3.88728383,183.54,183.52,8.2462]
[1755546185465,3.04,183.55,183.52,8.2462]
[1755546185666,3.88758833,183.54,183.52,8.2462]
[1755546185865,3.04,183.55,183.52,2.8]
[1755546186166,3.88758833,183.54,183.52,2.8]
[1755546186365,3.04,183.55,183.52,2.8]
[1755546186561,3.88750351,183.54,183.52,2.8]
[1755546186772,3.04,183.55,183.52,2.8]
[1755546186974,6.92750351,183.54,183.51,5.4466]
[1755546187175,3.04,183.54,183.51,5.4466]
[1755546187376,133.6,183.56,183.5,0.03824613]
[1755546187377,3.04,183.55,183.5,0.03824613]
[1755546187575,3.88744298,183.54,183.5,0.03824613]
[1755546187778,3.88744298,183.53,183.5,0.03824613]
[1755546188079,3.04,183.51,183.5,0.03824613]
[1755546188377,6.92744298,183.51,183.5,0.03824613]
[1755546188574,145.10658863,183.51,183.5,0.03824613]
[1755546188779,3.04,183.5,183.42,2.8]
[1755546188970,3.04,183.5,183.42,8.2493]
[1755546188971,3.88744298,183.49,183.42,8.2493]
[1755546189170,3.04,183.5,183.42,8.2493]
[1755546189363,3.88646161,183.49,183.42,8.2493]
[1755546189575,3.04,183.5,183.42,8.2493]
[1755546189778,3.88637775,183.49,183.42,8.2493]
[1755546189965,3.04,183.5,183.42,8.2493]
[1755546190171,0.03817766,183.48,183.42,8.2493]
[1755546191978,0.03817766,183.48,183.37,83.07846661]
[1755546191979,3.04,183.47,183.41,5.4496]
[1755546192176,3.04,183.47,183.38,2.83]
[1755546192475,3.04,183.47,183.4,5.4497]
[1755546193081,3.04,183.47,183.41,8.2795]
[1755546193568,3.04,183.48,183.42,5.4494]
[1755546193773,0.04183133,183.46,183.42,5.4494]
[1755546194076,0.04183133,183.46,183.43,2.83]
[1755546194269,3.08183133,183.46,183.43,2.83]
[1755546194468,3.08183133,183.46,183.43,8.2791]
[1755546199681,3.04,183.44,183.4,2.83]
[1755546200188,0.04183133,183.46,183.38,2.83]
[1755546200881,0.04183133,183.46,183.43,2.83]
[1755546201275,3.08183133,183.46,183.43,2.83]
[1755546203181,3.17,183.44,183.36,2.84]
[1755546203785,3.17,183.44,183.37,5.4507]
[1755546204079,0.03854951,183.42,183.36,2.84]
[1755546204284,0.03854951,183.42,183.36,8.2911]
[1755546204782,0.03854951,183.42,183.36,2.84]
[1755546205177,3.17,183.4,183.36,2.84]
[1755546205486,3.17,183.39,183.34,5.4517]
[1755546205672,3.17,183.38,183.34,8.2917]
[1755546206071,3.17,183.38,183.35,5.4514]
[1755546206271,3.20919451,183.38,183.35,8.2914]
[1755546206782,3.20919451,183.38,183.3,2.84]
[1755546207076,3.20919451,183.38,183.3,8.2929]
[1755546207386,3.20919451,183.38,183.3,2.84]
[1755546208378,3.20919451,183.38,183.31,5.4526]
[1755546208876,3.20919451,183.38,183.3,8.2929]
[1755546209077,3.17,183.36,183.26,2.84]
[1755546209880,0.03646491,183.33,183.26,2.84]
[1755546210079,0.03646491,183.33,183.28,5.4533]
[1755546210280,3.17,183.32,183.28,5.4533]
[1755546210785,0.03646491,183.33,183.29,8.2932]
[1755546211085,0.03646491,183.33,183.26,2.84]
[1755546211478,0.03646491,183.33,183.3,8.2927]
[1755546211780,0.03646491,183.33,183.26,2.84]
[1755546211985,0.03646491,183.33,183.3,2.84]
[1755546212185,0.03646491,183.33,183.28,3.81376212]
[1755546212484,3.17,183.37,183.31,2.84]
[1755546212683,0.03722886,183.32,183.31,8.2927]
[1755546213082,3.17,183.37,183.31,2.84]
[1755546213292,0.0384859,183.33,183.32,5.4524]
[1755546214087,0.0384859,183.33,183.32,8.2924]
[1755546215187,0.0384859,183.33,183.32,5.4524]
[1755546215680,0.0384859,183.33,183.32,8.2924]
[1755546217190,0.0384859,183.33,183.32,5.4524]
[1755546219484,0.0384859,183.33,183.3,5.4527]
[1755546219686,3.17,183.32,183.3,5.4527]
[1755546220688,0.0384859,183.33,183.31,5.4527]
[1755546220990,3.2084859,183.33,183.31,5.4527]
[1755546223696,3.2084859,183.33,183.27,2.84]
[1755546225888,3.2084859,183.33,183.23,3.81376212]
[1755546226089,3.2084859,183.33,183.24,2.84]
[1755546226284,3.17,183.33,183.24,2.84]
[1755546226696,0.04135873,183.3,183.24,2.84]
[1755546227295,3.17,183.28,183.22,3.81376212]
[1755546227592,3.17,183.28,183.22,6.65376212]
[1755546227988,0.04052039,183.27,183.22,6.65376212]
[1755546228194,3.21052039,183.27,183.23,5.4548]
[1755546228490,3.21052039,183.27,183.23,8.2948]
[1755546229095,3.17,183.26,183.23,8.2948]
[1755546229293,0.04052039,183.27,183.23,8.2948]
[1755546229693,3.21052039,183.27,183.23,8.2948]
[1755546230492,0.04052039,183.27,183.23,8.2948]
[1755546230696,3.17,183.26,183.23,8.2948]
[1755546231595,0.04052039,183.27,183.22,5.4552]
[1755546231901,3.17,183.25,183.22,5.4552]
[1755546232895,3.17,183.25,183.23,5.455]
[1755546234804,3.00052039,183.27,183.24,5.4547]
[1755546235102,2.96,183.26,183.24,5.4547]
[1755546235808,3.00052039,183.27,183.24,5.4547]
[1755546236911,2.96,183.26,183.24,5.4547]
[1755546237206,2.96,183.26,183.23,8.2949]
[1755546237808,2.96,183.26,183.22,5.4552]
[1755546238006,2.96,183.25,183.22,5.4552]
[1755546238206,0.04052039,183.27,183.22,5.4552]
[1755546238207,2.96,183.24,183.22,5.4552]
[1755546238707,0.04052039,183.27,183.21,5.4555]
[1755546238905,2.96,183.26,183.19,2.84]
[1755546239410,0.0392535,183.24,183.21,5.4554]
[1755546239706,0.0392535,183.24,183.21,8.2954]
[1755546239904,2.9992535,183.24,183.21,8.2954]
[1755546240404,2.96,183.33,183.23,6.65376212]
[1755546240599,2.96,183.31,183.23,2.84]
[1755546240801,2.96,183.31,183.21,3.85516793]
[1755546240802,2.96,183.29,183.21,3.81376212]
[1755546241504,2.96,183.29,183.23,0.04114194]
[1755546242103,2.96,183.29,183.23,2.84114194]
[1755546243006,2.96,183.29,183.23,8.29604194]
[1755546244113,2.96,183.32,183.23,2.84114194]
[1755546244311,8.51541109,183.31,183.23,2.84114194]
[1755546244512,8.51541109,183.3,183.23,2.84114194]
[1755546244714,2.96,183.28,183.23,5.49594194]
[1755546245009,2.96,183.29,183.24,2.8]
[1755546245212,2.96,183.29,183.25,2.8]
[1755546245512,2.96,183.29,183.26,5.4541]
[1755546246111,52.96,183.32,183.26,5.4541]
[1755546246312,2.96,183.3,183.27,2.8]
[1755546246513,6.85772137,183.29,183.26,5.4541]
[1755546246705,2.96,183.29,183.26,5.4541]
[1755546246907,2.96,183.29,183.27,0.03655768]
[1755546247811,2.96,183.31,183.27,8.29035768]
[1755546248009,3.90320927,183.3,183.28,2.8]
[1755546248209,50.0,183.32,183.28,2.8]
[1755546248512,2.96,183.29,183.27,0.03655768]
[1755546248708,50.0,183.32,183.27,0.03655768]
[1755546248912,8.54015767,183.31,183.27,0.03655768]
[1755546249110,2.96,183.29,183.27,0.03655768]
[1755546250709,50.0,183.32,183.27,0.03655768]
[1755546250910,2.96,183.28,183.27,0.03655768]
[1755546251111,6.87109612,183.28,183.27,0.03655768]
[1755546251314,11.51402993,183.28,183.27,0.03655768]
[1755546254316,8.55402993,183.28,183.27,0.03655768]
[1755546254816,3.91109612,183.28,183.27,0.03655768]
[1755546255411,8.55214986,183.28,183.27,0.03655768]
[1755546255711,11.51214986,183.28,183.27,0.03655768]
[1755546256315,6.87109612,183.28,183.27,0.03655768]
[1755546267127,3.91109612,183.28,183.27,2.83655768]
[1755546268827,3.91109612,183.28,183.27,0.03655768]
[1755546269731,6.93109612,183.28,183.27,0.03655768]
[1755546270728,3.91109612,183.28,183.27,0.03655768]
[1755546270930,3.91109612,183.28,183.27,2.83655768]
[1755546271133,183.58,183.31,183.28,2.8]
[1755546271334,3.92603948,183.3,183.29,2.8]
[1755546271629,3.92603948,183.3,183.27,0.03655768]
[1755546271826,3.92603948,183.29,183.27,2.83655768]
[1755546272032,183.58,183.31,183.27,2.83655768]
[1755546272231,3.92519273,183.3,183.27,2.83655768]
[1755546272428,3.92519273,183.29,183.27,2.83655768]
[1755546272630,3.92519273,183.28,183.27,2.83655768]
[1755546273344,186.6,183.31,183.27,2.83655768]
[1755546273532,3.92518048,183.3,183.28,2.8]
[1755546273734,3.92518048,183.29,183.28,2.8]
[1755546276330,3.92518048,183.29,183.28,8.2536]
[1755546277035,3.02,183.34,183.3,2.8]
[1755546277333,3.92462451,183.33,183.32,2.8]
[1755546277634,3.92462451,183.33,183.32,8.2524]
[1755546277836,53.02,183.4,183.32,2.8]
[1755546278035,142.14586039,183.39,183.32,2.8]
[1755546278229,8.58586039,183.38,183.35,8.2515]
[1755546278530,8.58586039,183.37,183.35,8.2515]
[1755546278733,3.92377429,183.36,183.35,8.2515]
[1755546279327,3.92377429,183.36,183.35,2.8]
[1755546279528,3.92377429,183.36,183.34,0.04121238]
[1755546279735,3.02,183.38,183.34,0.04121238]
[1755546280041,6.93916521,183.37,183.34,0.04121238]
[1755546280234,3.91916521,183.36,183.34,0.04121238]
[1755546280436,3.02,183.37,183.34,8.29301238]
[1755546280838,133.56,183.39,183.34,0.04121238]
[1755546281038,3.91704809,183.38,183.36,2.8]
[1755546281238,3.91704809,183.37,183.36,2.8]
[1755546281435,3.91704809,183.37,183.34,0.04121238]
[1755546281642,136.58,183.39,183.35,2.8]
[1755546281840,3.91528575,183.38,183.35,2.8]
[1755546282028,6.93528575,183.37,183.34,0.04121238]
[1755546282231,3.02,183.38,183.34,0.04121238]
[1755546282435,133.56,183.39,183.34,0.04121238]
[1755546282436,6.93495228,183.37,183.34,0.04121238]
[1755546282635,133.56,183.39,183.34,8.29301238]
[1755546282844,6.93361606,183.38,183.34,8.29301238]
[1755546283035,3.91361606,183.37,183.34,8.29301238]